bitfinex-derivatives/quotes_BNBF0:USTF0_20250401
["timestamp","ask_amount","ask_price","bid_price","bid_amount"]
[1743477897548,0.30176068,609.62,608.57,0.32863926]
[1743477897753,0.30176068,609.63,608.57,0.32863926]
[1743477897950,0.30176068,609.62,608.57,0.32863926]
[1743477898159,0.28569904,609.61,608.57,0.32863926]
[1743477899550,0.28569904,609.61,608.58,0.536]
[1743477900056,0.28569904,609.61,608.59,0.32862846]
[1743477900256,0.28569904,609.61,608.59,0.73762846]
[1743477903865,2.5058126,610.2,608.59,0.73762846]
[1743477904066,0.28565096,609.6,608.59,0.73762846]
[1743477904560,0.32777213,610.18,608.59,0.73762846]
[1743477904764,0.28566152,609.59,608.59,0.73762846]
[1743477904964,0.32777213,610.18,608.59,0.73762846]
[1743477905161,0.30179352,610.17,608.59,0.73762846]
[1743477905366,0.28566386,609.58,608.59,0.73762846]
[1743477905559,0.32778824,610.15,608.59,0.73762846]
[1743477905963,0.28566621,609.57,608.59,0.73762846]
[1743477906163,0.32778824,610.15,608.59,0.73762846]
[1743477906366,0.30179475,610.14,608.59,0.73762846]
[1743477906564,0.28566738,609.56,608.59,0.73762846]
[1743477906764,0.32778824,610.15,608.59,0.73762846]
[1743477906960,0.30179656,610.14,608.59,0.73762846]
[1743477907165,0.28566738,609.55,608.59,0.73762846]
[1743477907466,0.32780436,610.12,608.6,0.67]
[1743477907666,0.28566972,609.54,608.6,0.67]
[1743477907965,0.32780436,610.12,608.6,0.67]
[1743477908165,0.30179399,610.11,608.6,0.67]
[1743477908366,0.28566972,609.53,608.6,0.67]
[1743477908564,0.32782048,610.09,608.6,0.67]
[1743477908765,0.30180354,610.08,608.6,0.67]
[1743477909066,0.28567676,609.52,608.6,0.67]
[1743477909267,0.3278366,610.06,608.6,0.67]
[1743477909467,0.28568028,609.51,608.6,0.67]
[1743477909869,0.3278366,610.06,608.6,0.67]
[1743477910070,0.30180218,610.05,608.6,0.67]
[1743477910263,0.28568028,609.5,608.6,0.67]
[1743477910469,0.32785272,610.03,608.6,0.67]
[1743477910669,0.3017972,610.02,608.6,0.67]
[1743477910868,0.28569318,609.49,608.6,0.67]
[1743477911064,0.32786885,610.0,608.6,0.67]
[1743477911266,0.30180627,609.99,608.6,0.67]
[1743477911470,0.28569669,609.48,608.6,0.67]
[1743477911670,0.32788497,609.97,608.6,0.67]
[1743477911968,0.28570021,609.47,608.6,0.67]
[1743477912364,0.32788497,609.97,608.6,0.67]
[1743477912567,0.28570138,609.46,608.6,0.67]
[1743477912963,0.32788497,609.97,608.6,0.67]
[1743477913169,0.28570021,609.45,608.6,0.67]
[1743477913571,0.32788497,609.97,608.6,0.67]
[1743477913870,0.28570138,609.44,608.6,0.67]
[1743477914063,0.32788497,609.97,608.6,0.67]
[1743477914267,0.3018026,609.96,608.6,0.67]
[1743477914467,0.28570138,609.43,608.6,0.67]
[1743477914669,0.3279011,609.94,608.6,0.67]
[1743477914870,0.30180218,609.93,608.6,0.67]
[1743477915061,0.28570373,609.42,608.6,0.67]
[1743477915264,0.32791723,609.91,608.6,0.67]
[1743477915464,0.3018008,609.9,608.6,0.67]
[1743477915765,0.28570725,609.41,608.6,0.67]
[1743477916071,0.32792798,609.89,608.6,0.67]
[1743477916273,0.28570959,609.4,608.6,0.67]
[1743477916669,0.32792798,609.89,608.6,0.67]
[1743477916973,0.28570959,609.39,608.6,0.67]
[1743477917269,0.32792798,609.89,608.6,0.67]
[1743477917474,0.28571077,609.38,608.6,0.67]
[1743477917769,0.32792798,609.89,608.6,0.67]
[1743477917971,0.30179694,609.88,608.6,0.67]
[1743477918272,0.28571077,609.37,608.6,0.67]
[1743477918568,0.32792798,609.89,608.6,0.67]
[1743477918770,0.28571194,609.87,608.6,0.67]
[1743477918972,0.62974884,609.86,608.6,0.67]
[1743477919170,0.62975422,609.85,608.6,0.67]
[1743477919371,0.6297596,609.84,608.6,0.67]
[1743477919569,0.62976498,609.83,608.6,0.67]
[1743477919873,0.62977035,609.82,608.6,0.67]
[1743477920073,0.62977573,609.81,608.6,0.67]
[1743477920273,0.62978111,609.8,608.61,0.536]
[1743477920571,0.62978649,609.79,608.61,0.536]
[1743477920773,0.62979187,609.78,608.61,0.536]
[1743477921073,0.62979725,609.77,608.61,0.536]
[1743477921276,0.62980263,609.76,608.61,0.536]
[1743477921472,0.62980801,609.75,608.61,0.536]
[1743477921672,0.62981338,609.74,608.61,0.536]
[1743477921872,0.62981876,609.73,608.61,0.536]
[1743477922072,0.62982414,609.72,608.61,0.536]
[1743477922272,0.62982952,609.71,608.61,0.536]
[1743477922573,0.30180473,609.7,608.61,0.536]
[1743477925174,0.28573305,609.69,608.61,0.536]
[1743477925373,0.30180473,609.68,608.61,0.536]
[1743477927978,0.30180473,609.67,608.61,0.536]
[1743477928179,0.28573657,609.67,608.62,0.67]
[1743477928377,0.3018318,609.66,608.62,0.67]
[1743477929978,0.3018318,609.65,608.62,0.67]
[1743477930179,0.3018318,609.64,608.62,0.67]
[1743477930479,0.3018318,609.63,608.62,0.67]
[1743477930680,0.3018318,609.62,608.62,0.67]
[1743477930875,0.3018318,609.61,608.62,0.67]
[1743477931180,0.3018318,609.6,608.62,0.67]
[1743477931374,0.3018318,609.61,608.62,0.67]
[1743477931574,0.3018318,609.6,608.62,0.67]
[1743477931773,0.3018318,609.59,608.62,0.67]
[1743477931980,0.3018318,609.61,608.62,0.67]
[1743477932175,0.3018318,609.6,608.62,0.67]
[1743477932375,0.3018318,609.61,608.62,0.67]
[1743477932575,0.3018318,609.6,608.62,0.67]
[1743477932781,0.3018318,609.61,608.62,0.67]
[1743477932983,0.3018318,609.6,608.62,0.67]
[1743477933177,0.3018318,609.61,608.62,0.67]
[1743477933479,0.3018318,609.6,608.63,0.409]
[1743477933782,0.3018318,609.59,608.63,0.409]
[1743477933979,0.28574126,609.59,608.63,0.409]
[1743477934185,0.3018318,609.58,608.63,0.409]
[1743477935585,2.8076444,609.58,608.63,0.409]
[1743477935786,0.3018318,609.57,608.63,0.409]
[1743477937078,2.5058126,609.54,608.63,0.409]
[1743477937283,0.3018318,609.53,608.63,0.409]
[1743477938687,0.3018318,609.55,608.63,0.409]
[1743477938989,0.3018318,609.54,608.63,0.409]
[1743477939187,0.3018318,609.53,608.63,0.409]
[1743477939487,0.28574596,609.56,608.63,0.409]
[1743477939488,0.3018318,609.52,608.63,0.409]
[1743477939682,0.3018318,609.51,608.63,0.409]
[1743477939885,0.3018318,609.5,608.63,0.409]
[1743477940087,0.2857483,609.51,608.63,0.409]
[1743477940282,0.3018318,609.5,608.63,0.409]
[1743477942986,0.3018318,609.49,608.63,0.409]
[1743477943194,0.3018318,609.48,608.63,0.409]
[1743477944393,0.28575417,609.49,608.63,0.409]
[1743477945689,0.32802479,609.71,608.63,0.409]
[1743477945994,0.30181097,609.7,608.63,0.409]
[1743477946294,0.28572132,609.48,608.64,0.536]
[1743477946493,0.32802479,609.71,608.64,0.536]
[1743477946693,0.28572132,609.47,608.64,0.536]
[1743477947092,0.32802479,609.71,608.64,0.536]
[1743477947290,0.28572015,609.46,608.64,0.536]
[1743477947697,0.32802479,609.71,608.64,0.536]
[1743477947895,0.30183287,609.7,608.64,0.536]
[1743477948189,0.28572719,609.45,608.64,0.536]
[1743477948394,0.32802479,609.71,608.64,0.536]
[1743477948695,0.28572719,609.69,608.64,0.536]
[1743477948888,0.30183237,609.68,608.64,0.536]
[1743477949093,0.28572719,609.69,608.64,0.536]
[1743477949392,0.30183288,609.68,608.64,0.536]
[1743477952196,0.2857225,609.67,608.64,0.536]
[1743477952397,0.30183288,609.66,608.64,0.536]
[1743477954894,0.30183288,609.65,608.64,0.536]
[1743477955101,0.28572484,609.65,608.64,0.536]
[1743477955299,0.30183288,609.64,608.64,0.536]
[1743477955802,0.28572484,609.65,608.64,0.536]
[1743477956399,0.30181418,609.64,608.64,0.536]
[1743477956796,0.28572484,609.65,608.64,0.536]
[1743477957198,0.28572484,609.65,608.63,0.409]
[1743477957602,0.30181601,609.64,608.63,0.409]
[1743477957803,0.32802479,609.71,608.63,0.409]
[1743477958102,0.28572836,609.63,608.63,0.409]
[1743477958504,0.32802479,609.71,608.63,0.409]
[1743477958706,0.2857225,609.62,608.63,0.409]
[1743477959106,0.32802479,609.71,608.63,0.409]
[1743477959404,0.2857225,609.61,608.63,0.409]
[1743477959598,0.32802479,609.71,608.63,0.409]
[1743477959804,0.30182608,609.7,608.64,0.536]
[1743477960004,0.2857225,609.6,608.64,0.536]
[1743477960203,0.32802479,609.71,608.64,0.536]
[1743477960401,0.30183193,609.7,608.64,0.536]
[1743477960600,0.28572132,609.59,608.64,0.536]
[1743477960801,0.32802479,609.71,608.64,0.536]
[1743477961001,0.30183193,609.7,608.64,0.536]
[1743477961199,0.28572132,609.58,608.64,0.536]
[1743477961399,0.30183193,609.7,608.64,0.536]
[1743477961603,0.30183166,609.69,608.64,0.536]
[1743477961804,0.28572132,609.57,608.64,0.536]
[1743477962001,0.32802479,609.71,608.64,0.536]
[1743477962307,0.28572484,609.56,608.64,0.536]
[1743477962707,0.32802479,609.71,608.64,0.536]
[1743477962908,0.28573071,609.55,608.64,0.536]
[1743477963305,0.32802479,609.71,608.64,0.536]
[1743477963603,0.28573775,609.54,608.64,0.536]
[1743477963808,0.32802479,609.71,608.64,0.536]
[1743477964005,0.30183262,609.7,608.64,0.536]
[1743477964210,0.28574596,609.53,608.64,0.536]
[1743477964404,0.32803555,609.69,608.64,0.536]
[1743477964607,0.30183781,609.68,608.64,0.536]
[1743477964808,0.28574713,609.52,608.65,0.409]
[1743477965009,0.32804632,609.67,608.65,0.409]
[1743477965208,0.30183564,609.66,608.65,0.409]
[1743477965410,0.28574713,609.51,608.65,0.409]
[1743477965710,0.32805708,609.65,608.65,0.409]
[1743477966010,0.28574948,609.5,608.65,0.409]
[1743477966309,0.32805708,609.65,608.65,0.409]
[1743477966505,0.30184518,609.64,608.65,0.409]
[1743477966710,0.28575065,609.49,608.65,0.409]
[1743477967011,0.32805708,609.65,608.65,0.409]
[1743477967212,0.28575065,609.48,608.65,0.409]
[1743477967609,0.32805708,609.65,608.65,0.409]
[1743477967809,0.28575534,609.47,608.65,0.409]
[1743477968212,0.32805708,609.65,608.65,0.409]
[1743477968511,0.28575534,609.46,608.65,0.409]
[1743477968810,0.32805708,609.65,608.65,0.409]
[1743477969110,0.28575534,609.45,608.65,0.409]
[1743477969313,0.30185639,609.44,608.65,0.409]
[1743477969610,0.30185639,609.43,608.65,0.409]
[1743477972412,0.30185639,609.43,608.65,1.079]
[1743477973114,0.58763403,609.42,608.65,1.079]
[1743477973409,0.30185639,609.41,608.65,1.079]
[1743477973608,0.28577764,609.42,608.65,1.079]
[1743477975814,0.32805708,609.65,608.65,1.079]
[1743477976113,0.28568966,609.41,608.65,1.079]
[1743477976312,0.32805708,609.65,608.65,1.079]
[1743477976718,0.28568966,609.4,608.65,1.079]
[1743477976913,0.32805708,609.65,608.65,1.079]
[1743477977419,0.28568966,609.39,608.65,1.079]
[1743477977719,0.32805708,609.65,608.65,1.079]
[1743477977918,0.28568966,609.38,608.65,1.079]
[1743477978414,0.32805708,609.65,608.65,1.079]
[1743477978619,0.28568966,609.37,608.65,1.079]
[1743477979018,0.32805708,609.65,608.65,1.079]
[1743477979217,0.28568966,609.36,608.65,1.079]
[1743477979415,0.32805708,609.65,608.65,1.079]
[1743477979821,0.28568966,609.35,608.65,1.079]
[1743477980220,0.32805708,609.65,608.65,1.079]
[1743477980421,0.28568966,609.34,608.65,1.079]
[1743477980615,0.32805708,609.65,608.65,1.079]
[1743477981121,0.28568966,609.33,608.65,1.079]
[1743477981320,0.32805708,609.65,608.65,1.079]
[1743477981715,0.28568966,609.32,608.65,1.079]
[1743477981918,0.32805708,609.65,608.65,1.079]
[1743477982319,0.28568966,609.31,608.65,1.079]
[1743477982622,0.32805708,609.65,608.65,1.079]
[1743477982822,0.28568966,609.3,608.65,0.67]
[1743477983223,0.32805708,609.65,608.65,0.67]
[1743477983417,0.28568966,609.29,608.65,0.67]
[1743477983717,0.32805708,609.65,608.65,0.67]
[1743477984221,0.28568966,609.28,608.65,0.67]
[1743477984419,0.32805708,609.65,608.65,0.67]
[1743477984624,0.58732613,609.64,608.65,0.67]
[1743477984821,0.30172322,609.63,608.65,0.67]
[1743477985219,0.30172322,609.63,608.65,1.206]
[1743477986630,0.30172322,609.63,608.65,1.615]
[1743477987931,0.32805708,609.65,608.65,1.615]
[1743477988127,0.28569318,609.62,608.65,1.615]
[1743477990727,0.32805708,609.65,608.65,1.615]
[1743477991227,0.28570138,609.61,608.65,1.615]
[1743477992332,0.28570138,609.61,608.66,0.32859067]
[1743477993726,0.32805708,609.65,608.66,0.32859067]
[1743477994128,0.28568028,609.6,608.66,0.32859067]
[1743477997833,0.28568028,609.6,608.66,0.99859067]
[1743477999827,0.32805708,609.65,608.66,0.99859067]
[1743478000031,0.30173159,609.64,608.66,0.99859067]
[1743478000232,0.28569552,609.59,608.66,0.99859067]
[1743478008333,0.28569552,609.59,608.66,1.40759067]
[1743478008740,0.32805708,609.65,608.66,1.40759067]
[1743478009240,0.28571429,609.58,608.66,1.40759067]
[1743478010635,0.30177881,609.57,608.66,1.40759067]
[1743478011942,0.30177881,609.64,608.66,1.40759067]
[1743478012142,0.28572484,609.56,608.66,1.40759067]
[1743478012335,0.32805708,609.65,608.66,1.40759067]
[1743478012336,0.30177881,609.55,608.66,1.40759067]
[1743478012544,0.30177881,609.54,608.66,1.40759067]
[1743478012742,0.30177881,609.53,608.66,1.40759067]
[1743478012943,0.30177881,609.54,608.66,1.40759067]
[1743478013239,0.30177881,609.53,608.66,1.40759067]
[1743478013443,0.30177881,609.52,608.66,1.40759067]
[1743478013643,0.28571898,609.55,608.66,1.40759067]
[1743478013644,0.30177881,609.54,608.66,1.40759067]
[1743478013843,0.30177881,609.53,608.66,1.40759067]
[1743478014037,0.30177881,609.54,608.66,1.40759067]
[1743478014241,0.30177881,609.53,608.66,1.40759067]
[1743478014443,0.30177881,609.54,608.66,1.40759067]
[1743478014638,0.30177881,609.53,608.66,1.40759067]
[1743478014841,0.30177881,609.52,608.66,1.40759067]
[1743478015138,0.30177881,609.51,608.66,1.40759067]
[1743478017141,0.30180987,609.5,608.66,1.40759067]
[1743478017338,0.30180987,609.51,608.66,1.40759067]
[1743478017938,0.30180987,609.64,608.66,1.94359067]
[1743478018246,0.28573305,609.5,608.66,1.94359067]
[1743478018437,0.30180987,609.49,608.66,1.94359067]
[1743478018641,0.32805708,609.65,608.66,1.94359067]
[1743478018844,0.2857354,609.49,608.66,1.94359067]
[1743478019044,0.30181001,609.48,608.66,1.94359067]
[1743478019245,0.30181001,609.64,608.66,1.94359067]
[1743478019445,0.28573305,609.48,608.66,1.94359067]
[1743478019648,0.30181001,609.47,608.66,1.94359067]
[1743478019847,0.30181001,609.64,608.66,1.94359067]
[1743478020045,0.2857354,609.47,608.66,1.94359067]
[1743478020243,0.30181001,609.46,608.66,1.94359067]
[1743478020449,0.30181001,609.64,608.66,1.94359067]
[1743478020641,0.2857354,609.46,608.66,1.94359067]
[1743478020841,0.30181001,609.45,608.66,1.94359067]
[1743478021041,0.30181001,609.44,608.66,1.94359067]
[1743478021246,0.2857354,609.45,608.66,1.94359067]
[1743478021443,0.30181001,609.44,608.66,1.94359067]
[1743478022051,0.2857354,609.45,608.66,1.94359067]
[1743478023948,0.32805708,609.65,608.66,1.94359067]
[1743478024149,0.28570256,609.44,608.66,1.94359067]
[1743478024552,0.32805708,609.65,608.66,1.94359067]
[1743478024746,0.28570256,609.43,608.66,1.94359067]
[1743478025147,0.32805708,609.65,608.66,1.94359067]
[1743478025351,0.28570256,609.42,608.66,1.94359067]
[1743478025751,0.32805708,609.65,608.66,1.94359067]
[1743478025952,0.28570256,609.41,608.66,1.94359067]
[1743478026352,0.32805708,609.65,608.66,1.94359067]
[1743478026548,0.28570256,609.4,608.66,1.94359067]
[1743478026953,0.32805708,609.65,608.66,1.94359067]
[1743478027150,0.3017693,609.64,608.66,1.94359067]
[1743478027355,0.28570256,609.39,608.66,1.94359067]
[1743478027552,0.32805708,609.65,608.66,1.94359067]
[1743478027755,0.30177244,609.64,608.66,1.94359067]
[1743478027952,0.28570373,609.38,608.66,1.94359067]
[1743478028149,0.32805708,609.65,608.66,1.94359067]
[1743478028354,0.30177244,609.64,608.66,1.94359067]
[1743478028551,0.28570373,609.37,608.66,1.94359067]
[1743478028754,0.32805708,609.65,608.66,1.94359067]
[1743478028956,0.30177286,609.64,608.66,1.94359067]
[1743478029151,0.28569552,609.36,608.66,1.94359067]
[1743478029357,0.32805708,609.65,608.66,1.94359067]
[1743478029749,0.28569083,609.35,608.66,1.94359067]
[1743478029950,0.32805708,609.65,608.66,1.94359067]
[1743478030150,0.30175318,609.64,608.66,1.94359067]
[1743478030354,0.285692,609.34,608.66,1.94359067]
[1743478030554,0.32805708,609.65,608.66,1.94359067]
[1743478030852,0.285692,609.33,608.66,1.94359067]
[1743478031055,0.27122942,609.33,608.66,1.94359067]
[1743478031256,0.32805708,609.65,608.66,0.86459067]
[1743478031451,0.28569083,609.32,608.66,0.86459067]
[1743478031855,0.32805708,609.65,608.66,0.86459067]
[1743478032055,0.28569083,609.31,608.66,0.86459067]
[1743478032457,0.32805708,609.65,608.66,0.86459067]
[1743478032756,0.28568966,609.3,608.66,0.86459067]
[1743478032955,0.32805708,609.65,608.66,0.86459067]
[1743478033361,0.28569083,609.29,608.66,0.86459067]
[1743478033557,0.32805708,609.65,608.66,0.86459067]
[1743478034059,0.28569083,609.28,608.66,1.27359067]
[1743478034258,0.32805708,609.65,608.66,1.27359067]
[1743478034459,0.28569083,609.27,608.66,1.27359067]
[1743478034658,0.28569083,609.27,608.66,1.94359067]
[1743478034856,0.32805708,609.65,608.66,1.94359067]
[1743478035054,0.28569083,609.26,608.66,1.94359067]
[1743478035455,0.32805708,609.65,608.66,1.94359067]
[1743478035655,0.28569083,609.25,608.66,1.94359067]
[1743478036055,0.32805708,609.65,608.66,1.94359067]
[1743478036259,0.28569083,609.24,608.66,1.94359067]
[1743478036559,0.32805708,609.65,608.66,1.94359067]
[1743478036956,0.28569083,609.23,608.66,1.94359067]
[1743478037162,0.32805708,609.65,608.66,1.94359067]
[1743478037462,0.28569083,609.22,608.66,1.40759067]
[1743478037962,0.32805708,609.65,608.66,1.40759067]
[1743478038159,0.28569083,609.21,608.66,1.40759067]
[1743478038358,0.30174702,609.64,608.66,1.40759067]
[1743478038359,0.32805708,609.65,608.66,1.40759067]
[1743478038565,0.3017471,609.64,608.66,1.40759067]
[1743478038759,0.285692,609.2,608.66,1.40759067]
[1743478038962,0.32805708,609.65,608.66,1.40759067]
[1743478039162,0.30174525,609.64,608.66,1.40759067]
[1743478039362,0.285692,609.19,608.66,1.40759067]
[1743478039561,0.32805708,609.65,608.66,1.40759067]
[1743478039757,0.30174728,609.64,608.66,1.40759067]
[1743478039963,0.285692,609.18,608.66,1.40759067]
[1743478040163,0.32805708,609.65,608.66,1.94359067]
[1743478040364,0.30174745,609.64,608.66,1.94359067]
[1743478040565,0.285692,609.17,608.66,1.94359067]
[1743478040759,0.32805708,609.65,608.66,1.94359067]
[1743478040963,0.30174717,609.64,608.66,1.94359067]
[1743478041160,0.58738172,609.64,608.66,1.94359067]
[1743478041361,0.30174717,609.63,608.66,1.94359067]
[1743478041963,0.30174717,609.64,608.66,1.94359067]
[1743478042163,0.2856791,609.62,608.66,1.94359067]
[1743478044758,2.5058126,610.43,608.66,1.94359067]
[1743478044963,0.32764862,610.41,608.66,1.94359067]
[1743478045162,0.28557361,609.61,608.66,1.94359067]
[1743478045365,0.32764862,610.41,608.66,1.94359067]
[1743478045559,0.30169669,610.4,608.66,1.94359067]
[1743478045765,0.28557712,609.6,608.66,1.94359067]
[1743478045967,0.32766473,610.38,608.66,1.94359067]
[1743478046160,0.30169669,610.37,608.66,1.94359067]
[1743478046362,0.28557947,609.59,608.66,1.94359067]
[1743478046765,0.32768083,610.35,608.66,1.94359067]
[1743478046961,0.28558298,609.58,608.66,1.94359067]
[1743478047362,0.32768083,610.35,608.66,1.94359067]
[1743478047562,0.2855783,609.57,608.66,1.94359067]
[1743478047966,0.32768083,610.35,608.66,1.94359067]
[1743478048166,0.28557127,609.56,608.66,1.94359067]
[1743478048568,0.32768083,610.35,608.66,1.94359067]
[1743478048769,0.28557244,609.55,608.66,1.94359067]
[1743478049170,2.5058126,610.32,608.66,1.94359067]
[1743478049469,0.28557478,609.54,608.66,1.94359067]
[1743478049672,0.32770768,610.3,608.66,1.94359067]
[1743478049870,0.30168045,610.29,608.66,1.94359067]
[1743478050070,0.28557712,609.53,608.66,1.94359067]
[1743478050272,0.32770768,610.3,608.66,1.94359067]
[1743478050467,2.5058126,610.2,608.66,1.94359067]
[1743478050668,0.28557947,609.52,608.66,1.94359067]
[1743478050869,0.32776676,610.19,608.66,1.94359067]
[1743478051066,0.30170351,610.18,608.66,1.94359067]
[1743478051267,0.28559001,609.51,608.66,1.94359067]
[1743478051567,0.3277775,610.17,608.66,1.94359067]
[1743478051770,0.28559236,609.5,608.66,1.94359067]
[1743478052169,0.32778287,610.16,608.66,1.94359067]
[1743478052368,0.28559353,609.49,608.66,1.94359067]
[1743478052771,0.32778287,610.16,608.66,1.94359067]
[1743478052971,0.2855947,609.48,608.66,1.94359067]
[1743478053369,0.32778287,610.16,608.66,1.94359067]
[1743478053568,0.2855947,609.47,608.66,1.94359067]
[1743478053973,0.32778287,610.16,608.66,1.94359067]
[1743478054275,0.2855947,609.46,608.66,1.94359067]
[1743478054475,0.32778287,610.16,608.66,1.94359067]
[1743478054670,0.30169539,610.15,608.66,1.94359067]
[1743478054869,0.2855947,609.45,608.66,1.94359067]
[1743478055172,0.32779362,610.14,608.66,1.94359067]
[1743478055373,0.28559587,609.44,608.66,1.94359067]
[1743478055769,0.32779362,610.14,608.66,1.94359067]
[1743478056074,0.28559587,609.43,608.66,1.94359067]
[1743478056274,0.32779362,610.14,608.66,1.94359067]
[1743478056775,0.28559705,609.42,608.66,1.94359067]
[1743478056974,0.32779362,610.14,608.66,1.94359067]
[1743478057277,0.58728631,610.13,608.66,1.94359067]
[1743478057478,0.62949831,610.12,608.66,1.94359067]
[1743478057675,0.62950368,610.11,608.66,1.94359067]
[1743478057976,0.62950906,610.1,608.66,1.94359067]
[1743478058175,0.62950039,610.09,608.66,1.94359067]
[1743478058376,0.62950576,610.08,608.66,1.94359067]
[1743478058676,0.62951114,610.07,608.66,1.94359067]
[1743478058976,2.5058126,609.96,608.66,1.94359067]
[1743478059174,0.30167991,609.95,608.66,1.94359067]
[1743478059773,0.30167728,609.94,608.66,1.94359067]
[1743478059972,0.30167728,609.93,608.66,1.94359067]
[1743478060169,0.28561697,609.94,608.66,1.94359067]
[1743478060374,0.30167728,609.93,608.66,1.94359067]
[1743478061271,0.28561697,609.94,608.66,1.94359067]
[1743478061472,0.30167719,609.93,608.66,1.94359067]
[1743478062977,0.30167719,610.05,608.66,1.94359067]
[1743478063180,0.28561931,609.92,608.66,1.94359067]
[1743478063378,0.30167719,609.91,608.66,1.94359067]
[1743478063774,0.30167719,609.9,608.66,1.94359067]
[1743478065982,0.30167719,609.89,608.66,1.94359067]
[1743478066277,0.28562283,609.89,608.66,1.94359067]
[1743478066482,0.30167719,609.88,608.66,1.94359067]
[1743478066980,0.30167719,609.88,608.66,1.93623782]
[1743478067683,0.28562283,609.89,608.66,1.93623782]
[1743478067883,0.30167626,609.88,608.66,1.93623782]
[1743478068983,0.28562283,609.89,608.66,1.93623782]
[1743478069581,0.30167729,609.88,608.66,1.93623782]
[1743478070986,0.28562283,609.89,608.66,1.93623782]
[1743478071188,0.30167711,609.88,608.66,1.93623782]
[1743478072085,0.28562517,609.87,608.66,1.93623782]
[1743478074988,0.32784198,610.05,608.66,1.93623782]
[1743478075184,0.28560642,609.86,608.66,1.93623782]
[1743478075489,0.30167692,609.85,608.66,1.93623782]
[1743478075688,0.30167692,609.84,608.66,1.93623782]
[1743478075890,0.32784198,610.05,608.66,1.93623782]
[1743478075891,0.30167692,609.83,608.66,1.93623782]
[1743478076189,0.30167692,609.82,608.66,1.93623782]
[1743478076490,0.30167692,609.81,608.66,1.93623782]
[1743478076690,0.30167692,609.84,608.66,1.93623782]
[1743478076891,0.28560759,609.85,608.66,1.93623782]
[1743478077093,0.3016762,609.84,608.66,1.93623782]
[1743478078092,0.58730606,609.83,608.66,1.93623782]
[1743478078293,0.28562986,609.83,608.66,1.93623782]
[1743478078488,0.30167615,609.82,608.66,1.93623782]
[1743478081094,0.58730836,609.81,608.66,1.93623782]
[1743478081287,0.30167615,609.8,608.66,1.93623782]
[1743478083192,0.28563221,609.81,608.66,1.93623782]
[1743478083391,0.30167562,609.8,608.66,1.93623782]
[1743478084896,0.3016762,609.79,608.66,1.93623782]
[1743478085098,0.3016762,609.8,608.66,1.93623782]
[1743478085292,0.3016762,609.79,608.66,1.93623782]
[1743478085493,0.3016762,609.78,608.66,1.93623782]
[1743478085692,0.3016762,609.77,608.66,1.93623782]
[1743478086000,0.3016762,609.76,608.66,1.93623782]
[1743478086293,0.3016762,609.75,608.66,1.93623782]
[1743478086492,0.3016762,609.8,608.66,1.93623782]
[1743478086697,0.3016762,609.79,608.66,1.93623782]
[1743478087000,0.3016762,609.78,608.66,1.93623782]
[1743478087197,0.3016762,609.77,608.66,1.93623782]
[1743478087400,0.28564862,609.78,608.66,1.93623782]
[1743478087600,0.3016762,609.77,608.66,1.93623782]
[1743478090104,0.28566621,609.76,608.66,1.93623782]
[1743478090508,0.3016762,609.75,608.66,1.93623782]
[1743478091203,0.30172063,609.74,608.66,1.93623782]
[1743478091398,0.30172063,609.73,608.66,1.93623782]
[1743478091601,0.30172063,609.75,608.66,1.93623782]
[1743478091799,0.30172063,609.74,608.66,1.93623782]
[1743478091999,0.30172063,609.73,608.66,1.93623782]
[1743478092203,0.30172063,609.75,608.66,1.93623782]
[1743478092403,0.30172063,609.74,608.66,1.93623782]
[1743478092601,0.30172063,609.73,608.66,1.93623782]
[1743478092804,0.30172037,609.72,608.66,1.93623782]
[1743478093004,0.30172037,609.71,608.66,1.93623782]
[1743478093310,0.30172037,609.7,608.66,1.93623782]
[1743478093503,0.30172037,609.75,608.66,1.93623782]
[1743478093701,0.30172037,609.74,608.66,1.93623782]
[1743478093906,0.30172037,609.73,608.66,1.93623782]
[1743478094102,0.30172037,609.72,608.66,1.93623782]
[1743478094303,0.28566621,609.76,608.66,1.93623782]
[1743478094507,0.30171602,609.75,608.66,1.93623782]
[1743478096108,0.30171575,609.74,608.66,1.93623782]
[1743478096309,0.30171575,609.73,608.66,1.93623782]
[1743478097009,0.30171594,609.72,608.66,1.93623782]
[1743478097208,0.30171594,609.71,608.66,1.93623782]
[1743478097411,0.30171594,609.7,608.66,1.93623782]
[1743478097607,0.30171407,609.69,608.66,1.93623782]
[1743478097908,0.30171407,609.68,608.66,1.93623782]